[Event "7th Sharjah Masters 2024"]
[Site "Sharjah"]
[Date "2024.05.19"]
[Round "6.11"]
[White "Suleymanli, Aydin"]
[Black "Martirosyan, Haik M."]
[Result "1-0"]
[ECO "C67"]
[WhiteElo "2621"]
[BlackElo "2679"]
[Annotator "TA"]
[PlyCount "77"]
[EventDate "2024.05.13"]
[EventType "swiss"]
[EventCountry "UAE"]
[SourceTitle "playchess.com"]
[Source "ChessBase"]
[SourceQuality "1"]
[TimeControl "5400+30"]

{[%evp 18,77,29,23,23,20,25,38,33,24,43,13,30,27,52,38,60,45,60,41,51,46,51,45,68,42,96,89,90,101,91,91,89,104,93,96,175,181,327,248,243,218,210,154,135,138,137,137,273,266,371,401,401,401,511,380,544,537,867,768,29971,29967]} 1. e4 {[%emt 0:00:01]} e5 {[%emt 0:00:35]} 2. Nf3 {[%emt 0:00:06]} Nc6 {[%emt 0:00:08]} 3. Bb5 {[%emt 0:00:04]} Nf6 {[%emt 0:00:12]} 4. O-O {[%emt 0:00:05][%cal Bh1f1,Bf1e1,Be1e5][%mdl 32]} Nxe4 {[%emt 0:00:08]} 5. Re1 {[%emt 0:00:18]} Nd6 {[%emt 0:00:08]} 6. Nxe5 {[%emt 0:00:10]} Be7 {[%emt 0:00:05]} 7. Bf1 {[%emt 0:00:13]} Nxe5 {[%emt 0:00:06]} 8. Rxe5 {[%emt 0:00:04]} O-O {[%emt 0:00:08]} 9. d4 {[%emt 0:00:11]} Bf6 {[%emt 0:00:06]} 10. Re1 {[%emt 0:00:04]} Nf5 {[%emt 0:00:07]} 11. d5 {[%emt 0:00:04]} d6 {[%emt 0:01:40]} 12. Nd2 {[%emt 0:00:07]} Bg5 {[%emt 0:04:20] White is slightly better.} 13. a4 {[%emt 0:00:05]} Ne7 {[%emt 0:06:07]} 14. Qf3 {[%emt 0:16:47]} Ng6 {[%emt 0:03:20]} 15. a5 {[%emt 0:02:58]} a6 {[%emt 0:09:27]} 16. Qb3 {[%emt 0:06:09]} Ne5 {[%emt 0:16:40]} 17. g3 {[%emt 0:05:07]} Nd7 {[%emt 0:01:56]} 18. h4 {[%emt 0:08:39]} Bh6 {[%emt 0:01:42]} 19. Nf3 {[%emt 0:07:04]} Bxc1 {[%emt 0:01:23]} 20. Raxc1 {[%emt 0:00:11]} Nf6 {[%emt 0:01:42]} 21. c4 {[%emt 0:03:11]} c5 {[%emt 0:04:04]} (21... Bg4 $14) 22. dxc6 $16 {[%emt 0:04:21]} bxc6 {[%emt 0:00:20]} 23. c5 {[%emt 0:00:18]} Be6 {[%emt 0:09:57]} 24. Qa3 {[%emt 0:09:04]} (24. Rxe6 fxe6 25. Qxe6+ Kh8) 24... dxc5 {[%emt 0:02:04]} 25. Qxc5 {[%emt 0:06:00][%cal Ob2b4]} Bd5 {[%emt 0:01:44]} 26. Nd4 {[%emt 0:07:48][%cal Oe1d1]} Rb8 {[%emt 0:02:10]} (26... Ne4 $16 27. Qc2 (27. Nxc6 Nxc5 28. Nxd8 Nb3 $19) 27... f5) 27. b4 $18 {[%emt 0:02:55]} (27. Nxc6 Bxc6 28. Qxc6 Qxa5 $16) 27... Ng4 {[%emt 0:14:41]} (27... Ne4 $142 28. Nxc6 Bxc6 29. Qxc6 Nd2) 28. Nxc6 {[%emt 0:03:46] Active counter play!} Bxc6 {[%emt 0:00:05]} 29. Qxc6 {[%emt 0:00:01] Rcd1 is the strong threat.} Rxb4 {[%emt 0:00:10]} 30. Qc5 {[%emt 0:05:08]} (30. Bxa6 Qxa5 31. Re8 Rd4 $16) 30... Rd4 {[%emt 0:01:36]} 31. Be2 {[%emt 0:03:15][%cal Oc1d1] [#] Threatens to win with Rcd1!} (31. Bxa6 $6 Rd5 32. Qc2 Qxa5 $11) 31... Rd5 {[%emt 0:02:22]} 32. Qb6 {[%emt 0:01:09]} Nf6 {[%emt 0:05:05]} (32... h5 $16 {was necessary.}) 33. Red1 {[%emt 0:00:41]} ({Stronger than} 33. Bxa6 Rxa5 34. Qxd8 Rxd8 $11) (33. Qxa6 Qxa5 34. Qc4 Re8 $11) 33... h5 {[%emt 0:05:52]} 34. Rxd5 {[%emt 0:03:05]} ({And not} 34. Qxa6 Qxa5 35. Qxa5 Rxa5 $11) 34... Qxd5 {[%emt 0:00:01]} 35. Qxa6 {[%emt 0:01:17]} ({Resist} 35. Bxa6 Qd2 36. Ra1 Kh8) 35... Ne4 {[%emt 0:00:54]} 36. Qd3 {[%emt 0:02:00] Inhibits Qd4.} Qa8 {[%emt 0:02:52]} (36... Qf5 $142 37. Qf3 Nxg3) 37. a6 {[%emt 0:00:36][%cal Oe2f3] [#] Strongly threatening Bf3!} Re8 {[%emt 0:00:55]} 38. Bf3 {[%emt 0:00:53][%cal Oc1c7] And now Rc7! would win.} f5 {[%emt 0:00:19]} 39. Rc7 {[%emt 0:00:47] Weighted Error Value: White=0.17 (very precise) /Black=0.65.  Mistake:       	---       	Black=5      Inaccurate:     	White=2     	Black=3      OK:         	White=11    	Black=6      Best:        	White=2     	Black=1} 1-0

[Event "7th Sharjah Masters 2024"]
[Site "Sharjah"]
[Date "2024.05.19"]
[Round "6.12"]
[White "Iniyan, Pa"]
[Black "Nguyen, Thai Dai Van"]
[Result "1/2-1/2"]
[ECO "D43"]
[WhiteElo "2497"]
[BlackElo "2650"]
[Annotator "TA"]
[PlyCount "86"]
[EventDate "2024.05.13"]
[EventType "swiss"]
[EventCountry "UAE"]
[SourceTitle "playchess.com"]
[Source "ChessBase"]
[SourceQuality "1"]
[TimeControl "5400+30"]

{[%evp 37,86,0,6,0,58,47,58,53,57,-37,42,22,23,27,46,-18,-11,-9,-9,-151,-166,-158,-169,-156,-141,-166,-140,-169,-48,-55,-64,-101,-50,-50,-50,-50,0,0,0,0,0,0,0,0,0,0,0,0,0,0,0]} 1. d4 {[%emt 1:31:00]} d5 {[%emt 1:31:00]} 2. c4 {[%emt 0:00:30]} c6 {[%emt 0:00:30]} 3. Nf3 {[%emt 0:00:30]} Nf6 {[%emt 0:00:30]} 4. Nc3 {[%emt 0:00:30]} e6 {[%emt 0:00:30]} 5. Bg5 {[%emt 0:00:30]} h6 {[%emt 0:00:30]} 6. Bxf6 {[%emt 0:00:30]} Qxf6 {[%emt 0:00:30]} 7. e3 {[%emt 0:00:30]} Nd7 {[%emt 0:00:30]} 8. Bd3 {[%emt 0:00:30]} dxc4 {[%emt 0:00:30]} 9. Bxc4 {[%emt 0:00:30]} g6 {[%emt 0:00:30]} 10. O-O {[%emt 0:00:30]} Bg7 {[%emt 0:00:30]} 11. b4 {[%emt 0:00:30]} O-O {[%emt 0:00:30]} 12. a4 {[%emt 0:00:30]} e5 {[%emt 0:00:30] D43: Semi-Slav: 5 Bg5 h6.} 13. a5 {[%emt 0:00:30]} exd4 {[%emt 0:00:30]} 14. exd4 {[%emt 0:00:30]} Qd6 {[%emt 0:00:30]} 15. Qb3 {[%emt 0:00:30]} b5 {[%emt 0:00:30]} 16. axb6 {[%emt 0:00:30]} Nxb6 {[%emt 0:00:30]} 17. Ne4 {[%emt 0:00:30]} Qf4 {[%emt 0:00:30]} 18. Rfe1 {[%emt 0:00:30]} Bf5 $146 {[%emt 0:00:30]} ({Predecessor:} 18... Bg4 19. Ne5 Bxe5 20. g3 Qf5 21. Ra5 Nxc4 22. Qxc4 Bf3 {½-½ Svane,H (2325)-Pedersen,S (2110) DEN-ch corr Denmark 1996}) 19. Ng3 {[%emt 0:00:30]} Bd7 {[%emt 0:00:30]} 20. Bd3 {[%emt 0:00:30]} Rae8 {[%emt 0:00:30]} (20... Nd5 $11) 21. Bxg6 $14 {[%emt 0:00:30]} (21. Rxa7 Rxe1+ (21... Bxd4 22. Rxe8 Rxe8 23. Ne2 $18) 22. Nxe1 Bxd4 $17 (22... Qxd4 23. Nf3 $17)) 21... Be6 {[%emt 0:00:30]} 22. Rxe6 $1 {[%emt 0:00:30]} (22. d5 Bxd5 (22... fxg6 23. dxe6 Bxa1 24. Rxa1 $15) 23. Qc2 Rxe1+ (23... fxg6 $2 24. Qxg6 Rxe1+ 25. Rxe1 $19) (23... Qxb4 24. Rxe8 Rxe8 25. Bh7+ Kf8 26. Rxa7 $11) 24. Rxe1 fxg6 $19) 22... Rxe6 {[%emt 0:00:30]} 23. Bc2 {[%emt 0:00:30]} (23. Bf5 $14 Rd6 (23... Bxd4 24. Nxd4 Qxd4 25. Rd1 $16) 24. Qc2 Rxd4 25. Nxd4 (25. Qxc6 $2 Rc4 $19) 25... Qxd4 26. Rxa7) 23... Nd5 {[%emt 0:00:30]} (23... Bxd4 $15 24. Qd3 Rd8 (24... Bxa1 25. Qh7#) 25. Qh7+ (25. Rxa7 $2 Bxf2+ 26. Kh1 Rxd3 $19) (25. Ne2 $2 Rxe2 26. Qxe2 Bxa1 $19) 25... Kf8) 24. h3 {[%emt 0:00:30]} Rfe8 {[%emt 0:00:30]} (24... Bxd4 25. Qd3 (25. Nh5 Bxf2+ 26. Kxf2 Qxb4 $16) 25... Bxf2+ 26. Kxf2 $14) 25. Nh5 {[%emt 0:00:30]} Qc7 {[%emt 0:00:30]} 26. g3 {[%emt 0:00:30]} ({White should try} 26. Qd3 $14 Rg6 27. Qa3) 26... Re3 $11 {[%emt 0:00:30]} 27. fxe3 {[%emt 0:00:30]} Rxe3 {[%emt 0:00:30]} 28. Bd3 {[%emt 0:00:30]} (28. Re1 $1 $11 Rxb3 29. Re8+ Bf8 30. Bxb3) 28... Rxf3 $17 {[%emt 0:00:30]} 29. Kg2 {[%emt 0:00:30] [#]} Re3 $1 {[%emt 0:00:30]} (29... Bxd4 30. Kxf3 Bxa1 31. Nf4) 30. Rf1 {[%emt 0:00:30]} Bxd4 {[%emt 0:00:30]} 31. Kh2 {[%emt 0:00:30]} Be5 {[%emt 0:00:30]} 32. Qd1 {[%emt 0:00:30]} Rxg3 {[%emt 0:00:30]} (32... Nxb4 33. Qg4+ Kh8 34. Qxb4 Bxg3+ (34... Rxd3 35. Qf8+ Kh7 36. Rxf7+) (34... c5 $2 35. Qc4 $18) 35. Kg1 $18) (32... Bxg3+ 33. Kh1 Qe5 (33... Nxb4 $2 34. Qg4+ Kf8 35. Qg7+ Ke8 36. Qg8+ Kd7 37. Rxf7+ Re7 38. Nf6+ Kd6 39. Qxg3+ Kc5 40. Qf2+ Kd6 41. Ne4+ Rxe4 42. Bxe4 $18) 34. Qg4+ Kf8 35. Bc4 $17) (32... Kf8 $19 {[%cal Re5g3]} 33. Kh1 Ke7 (33... Bxg3 34. Qg4 $17) (33... Nxb4 $2 34. Bg6 $18)) 33. Nxg3 $15 {[%emt 0:00:30]} Bxg3+ {[%emt 0:00:30]} 34. Kg1 {[%emt 0:00:30] [#]} Ne3 {[%emt 0:00:30]} (34... Nxb4 $2 {loses.} 35. Qg4+ Kf8 36. Qxb4+ Qe7 37. Qc4 $18 (37. Qxe7+ Kxe7 38. Rf5 Bc7 $18)) (34... Bh2+ $1 $17 35. Kh1 Ne3 (35... Nxb4 $2 {is the wrong capture.} 36. Qg4+ Kf8 37. Qxb4+ Bd6 38. Qg4 $18)) 35. Qd2 $1 $15 {[%emt 0:00:30]} Nxf1 {[%emt 0:00:30]} 36. Qxh6 {[%emt 0:00:30]} Qb6+ {[%emt 0:00:30]} ({Better is} 36... Qf4 $15 37. Qxf4 Bxf4 38. Kxf1 Kg7) 37. Kh1 $1 $11 {[%emt 0:00:30]} Qe3 {[%emt 0:00:30]} 38. Bh7+ $1 {[%emt 0:00:30]} Kh8 39. Qf8+ {[%emt 0:00:30]} Kxh7 {[%emt 0:01:00]} 40. Qxf7+ {[%emt 0:00:30]} Kh6 {[%emt 0:00:30]} 41. Qf6+ {[%emt 0:00:30]} Kh7 {[%emt 0:00:30]} 42. Qf7+ {[%emt 0:00:30]} Kh6 {[%emt 0:00:30]} 43. Qf6+ {[%emt 0:00:30]} Kh7 {[%emt 0:00:30]} 1/2-1/2

[Event "7th Sharjah Masters 2024"]
[Site "Sharjah"]
[Date "2024.05.19"]
[Round "6.13"]
[White "Maurizzi, Marc`Andria"]
[Black "Mendonca, Leon Luke"]
[Result "1/2-1/2"]
[ECO "E11"]
[WhiteElo "2618"]
[BlackElo "2640"]
[Annotator "TA"]
[PlyCount "33"]
[EventDate "2024.05.13"]
[EventType "swiss"]
[EventCountry "UAE"]
[SourceTitle "playchess.com"]
[Source "ChessBase"]
[SourceQuality "1"]
[TimeControl "5400+30"]

{[%evp 16,33,20,0,0,-2,0,0,0,0,0,0,0,0,0,0,0,0,0,0]} 1. d4 {[%emt 0:00:08]} Nf6 {[%emt 1:31:00]} 2. c4 {[%emt 0:00:44]} e6 {[%emt 0:00:00]} 3. g3 {[%emt 0:00:03]} d5 {[%emt 0:00:00]} 4. Bg2 {[%emt 0:00:31]} Bb4+ {[%emt 0:00:00]} 5. Bd2 {[%emt 0:01:04]} Be7 {[%emt 0:00:00]} 6. Nf3 {[%emt 0:00:12]} O-O {[%emt 0:00:00]} 7. O-O {[%emt 0:00:08]} c6 {[%emt 0:00:00]} 8. Qc2 {[%emt 0:00:05]} Nbd7 {[%emt 0:00:00]} 9. Nc3 {[%emt 0:00:10] The position is equal.} dxc4 {[%emt 0:00:00]} 10. Ne4 {[%emt 0:00:34]} Nxe4 {[%emt 0:00:00]} 11. Qxe4 {[%emt 0:00:02]} b5 {[%emt 0:00:00]} 12. a4 {[%emt 0:00:03]} Bb7 {[%emt 0:00:00]} 13. axb5 {[%emt 0:00:03]} Nf6 {[%emt 0:00:00]} 14. Qe5 {[%emt 0:00:02]} Nd7 {[%emt 0:00:00]} 15. Qe4 {[%emt 0:00:01]} Nf6 {[%emt 0:00:00]} 16. Qe5 {[%emt 0:00:04]} Nd7 {[%emt 0:00:00]} 17. Qe4 {[%emt 0:01:13] A rather calm draw.   Weighted Error Value: White=0.03 (flawless) /Black=0.00 (flawless) .  OK:         	White=6     	Black=3      Best:        	White=1     	Black=2} 1/2-1/2

[Event "7th Sharjah Masters 2024"]
[Site "Sharjah"]
[Date "2024.05.19"]
[Round "6.14"]
[White "Royal, Shreyas"]
[Black "Puranik, Abhimanyu"]
[Result "1/2-1/2"]
[ECO "D85"]
[WhiteElo "2464"]
[BlackElo "2631"]
[Annotator "TA"]
[PlyCount "68"]
[EventDate "2024.05.13"]
[EventType "swiss"]
[EventCountry "UAE"]
[SourceTitle "playchess.com"]
[Source "ChessBase"]
[SourceQuality "1"]
[TimeControl "5400+30"]

{[%evp 9,68,22,57,2,36,38,49,10,19,36,20,22,33,19,18,15,23,22,18,23,21,32,16,12,0,0,15,22,0,0,0,0,0,0,24,17,15,37,48,0,0,0,0,0,0,0,0,0,0,0,0,0,0,0,0,0,0,0,0,0,0]} 1. d4 {[%emt 0:00:03]} Nf6 {[%emt 0:00:03][%cal Bg8f6,Bf6d5,Bd5b4,Bb4d3][%mdl 32]} 2. c4 {[%emt 0:00:07]} g6 {[%emt 0:00:03]} 3. Nc3 {[%emt 0:00:07]} d5 {[%emt 0:00:02]} 4. cxd5 {[%emt 0:00:31]} Nxd5 {[%emt 0:00:04]} 5. Bd2 {[%emt 0:00:07]} c5 {[%emt 0:00:45]} 6. Rc1 {[%emt 1:32:35]} (6. dxc5 $14 Bg7 7. Rc1) 6... Nc6 {[%emt 0:00:26]} 7. dxc5 {[%emt 0:00:00]} Bg7 {[%emt 0:00:06]} 8. e4 {[%emt 0:00:00] White is slightly better.} Ndb4 {[%emt 0:00:16]} 9. a3 {[%emt 0:00:00]} Nd3+ {[%emt 0:00:06]} 10. Bxd3 {[%emt 0:00:00]} Qxd3 {[%emt 0:00:03]} 11. Nge2 {[%emt 0:00:00]} O-O {[%emt 0:00:37]} 12. O-O {[%emt 0:00:00][%cal Bh1f1,Bf1f2,Bf2d2][%mdl 32]} Bg4 {[%emt 0:00:44] [#] Threatens to win with ...Bxc3.} 13. f3 {[%emt 0:00:00]} Be6 {[%emt 0:00:06]} 14. Nf4 {[%emt 0:00:00]} Qd4+ {[%emt 0:00:05]} 15. Rf2 {[%emt 0:00:00]} Qxc5 {[%emt 0:14:48] ...Bd4 is the strong threat.} 16. Ncd5 {[%emt 0:00:00]} Qd6 {[%emt 0:00:59]} 17. Be3 {[%emt 0:00:00] Repels Bd4} Rad8 {[%emt 1:19:47][%cal Ba8d8,Bd8d6,Bd6e6][%mdl 32]} 18. Rd2 {[%emt 0:00:00] White wants to play Nxe6.} Qb8 {[%emt 0:00:00]} 19. b4 {[%emt 0:00:00]} Bxd5 {[%emt 0:00:00]} 20. exd5 {[%emt 0:00:00]} Ne5 {[%emt 0:00:00]} 21. d6 {[%emt 0:00:00]} Rxd6 {[%emt 0:00:00]} ({Reject} 21... exd6 22. Nd5 $14) 22. Nd5 {[%emt 0:00:00]} Re6 {[%emt 0:00:00]} 23. Bc5 {[%emt 0:00:00][%cal Of3f4] [#] And now f4! would win.} h5 {[%emt 0:00:00]} 24. Bxe7 {[%emt 0:00:00]} (24. f4 $1 $14 Ng4 25. h3 (25. Nxe7+ Rxe7 26. Bd6 Qe8 $17)) 24... Re8 $11 {[%emt 0:00:00][%cal Ob7b5] The position is equal.} 25. Bh4 {[%emt 0:00:00]} Bh6 {[%emt 0:00:00]} 26. Nf6+ {[%emt 0:00:00]} Rxf6 $1 {[%emt 0:00:00]} 27. Bxf6 {[%emt 0:00:00][%cal Od2d5]} b5 {[%emt 0:00:00]} (27... Bxd2 {simplifies} 28. Qxd2 Re6 29. Bg5 b5) 28. Bxe5 {[%emt 0:00:00]} Qxe5 {[%emt 0:00:00]} 29. Rd8 $1 {[%emt 0:00:00]} Bxc1 {[%emt 0:00:00]} 30. Rxe8+ {[%emt 0:00:00]} Qxe8 {[%emt 0:00:00]} 31. Qxc1 {[%emt 0:00:00]} Qe5 {[%emt 0:00:00]} 32. h3 {[%emt 0:00:00]} Kg7 {[%emt 0:00:00]} 33. Kf2 {[%emt 0:00:00]} h4 {[%emt 0:00:00]} 34. Qd2 {[%emt 0:00:00]} g5 {[%emt 0:00:00] Weighted Error Value: White=0.08 (flawless) /Black=0.04 (flawless) .  Mistake:       	White=1     	---        Inaccurate:     	White=1     	Black=1      OK:         	White=16    	Black=16     Best:        	White=1     	Black=1      Strong:       	White=1     	Black=1} 1/2-1/2

[Event "7th Sharjah Masters 2024"]
[Site "Sharjah"]
[Date "2024.05.19"]
[Round "6.15"]
[White "Deac, Bogdan-Daniel"]
[Black "Adhiban, B.."]
[Result "1-0"]
[ECO "D37"]
[WhiteElo "2693"]
[BlackElo "2523"]
[Annotator "TA"]
[PlyCount "99"]
[EventDate "2024.05.13"]
[EventType "swiss"]
[EventCountry "UAE"]
[SourceTitle "playchess.com"]
[Source "ChessBase"]
[SourceQuality "1"]
[TimeControl "5400+30"]

{[%evp 10,99,0,-23,0,5,11,0,0,0,0,-9,28,44,85,64,81,72,70,88,93,86,107,115,89,43,48,45,38,27,31,31,49,19,23,20,37,34,16,19,14,11,9,0,14,0,27,16,35,37,56,32,26,28,42,0,62,50,62,75,67,92,80,0,58,0,60,105,77,55,127,55,52,52,137,131,291,270,287,277,482,310,285,285,417,401,486,469,523,501,583,570]} 1. Nf3 {[%emt 0:00:02]} d5 {[%emt 0:00:06]} 2. e3 {[%emt 0:00:27]} Nf6 {[%emt 0:00:45]} 3. c4 {[%emt 0:00:10]} e6 {[%emt 0:00:06]} 4. d4 {[%emt 0:01:06]} Be7 {[%emt 0:00:06]} 5. Nc3 {[%emt 0:14:41]} O-O {[%emt 0:00:05]} 6. Bd2 {[%emt 0:00:06]} dxc4 {[%emt 0:07:32]} 7. Bxc4 {[%emt 0:00:32]} b6 {[%emt 0:00:25]} 8. e4 {[%emt 0:26:25]} Bb7 {[%emt 0:00:06] The position is equal.} 9. Qe2 {[%emt 0:01:07]} c5 {[%emt 0:05:57]} 10. dxc5 {[%emt 0:01:16]} Nbd7 {[%emt 0:09:56]} 11. cxb6 {[%emt 0:08:46]} Nxb6 {[%emt 0:01:12] [#]} 12. Bb5 $1 {[%emt 0:06:05]} Bb4 {[%emt 0:26:41]} 13. Rd1 {[%emt 0:00:35]} Qc8 {[%emt 0:11:43]} 14. Bd3 {[%emt 0:03:22]} Rd8 {[%emt 0:08:00]} 15. O-O {[%emt 0:02:11]} Rxd3 {[%emt 0:00:07]} 16. Qxd3 {[%emt 0:00:01]} Ba6 {[%emt 0:00:02] [#]} 17. Qb1 {[%emt 0:00:20]} Bxf1 $14 {[%emt 0:00:06]} 18. Rxf1 {[%emt 0:00:36]} Nc4 {[%emt 0:05:34]} 19. Rc1 {[%emt 0:01:01][%cal Oc3e2] Ne2! would now be deadly.} Nxd2 {[%emt 0:00:29]} 20. Nxd2 {[%emt 0:00:13]} Qb7 {[%emt 0:00:48] Prevents Nd5.} 21. Qd3 {[%emt 0:02:45]} Ba5 {[%emt 0:02:58]} 22. Qc2 {[%emt 0:04:19]} Rd8 {[%emt 0:02:34]} 23. h3 {[%emt 0:01:40]} h6 {[%emt 0:02:05]} 24. Re1 {[%emt 0:00:22]} Rc8 {[%emt 0:01:37]} 25. Nb3 {[%emt 0:05:42]} Bc7 {[%emt 0:00:23]} 26. Nd2 {[%emt 0:07:30]} Ba5 {[%emt 0:00:36]} 27. Nb3 {[%emt 0:04:27]} Bc7 {[%emt 0:00:04]} 28. e5 {[%emt 0:01:52]} Nd7 {[%emt 0:01:10]} 29. f4 {[%emt 0:00:08]} Nf8 {[%emt 0:02:34]} 30. Qe4 {[%emt 0:01:47]} Qb6+ {[%emt 0:00:02]} 31. Kh1 {[%emt 0:01:22]} Ng6 {[%emt 0:00:09]} 32. Rd1 {[%emt 0:00:57]} Bb8 {[%emt 0:05:42]} (32... Qf2 $11 33. Qb7 Ne7) 33. g3 {[%emt 0:03:04]} h5 {[%emt 0:01:02]} 34. h4 $1 {[%emt 0:01:56] White is more active.} a5 {[%emt 0:00:05]} 35. Qd4 {[%emt 0:00:21]} Qb7+ {[%emt 0:03:25]} 36. Qe4 {[%emt 0:00:11]} (36. Kh2 {is interesting.} Ba7 37. Qd7 Qa8 38. Nd4) 36... Qb6 {[%emt 0:00:06]} 37. Qd4 {[%emt 0:00:53]} Qb7+ {[%emt 0:00:01]} 38. Kh2 $1 {[%emt 0:00:31]} Ba7 {[%emt 0:00:46]} 39. Qd7 {[%emt 0:00:08]} (39. Qe4 {simplifies} Qxe4 40. Nxe4 a4 41. Rd7) 39... Rc7 {[%emt 0:00:06]} ({Black should try} 39... Qa8 $1 $14) 40. Qd8+ {[%emt 0:00:37]} (40. Qd3 $16) 40... Nf8 $1 {[%emt 0:00:12][%cal Oa5a4]} 41. Qd3 $1 $36 {[%emt 0:00:28][%cal Oc3b5][%mdl 2048] Black is under pressure.} (41. Nxa5 $2 Qxb2+ 42. Rd2 Qxc3 $19) 41... Qb4 {[%emt 0:03:45]} (41... Rd7 $14 42. Qe2 Rxd1 43. Qxd1 (43. Nxd1 Qb6 $14) 43... Qb6) 42. Qb5 $16 {[%emt 0:00:41]} Qe7 $2 {[%emt 0:01:34] This costs Black the game.} (42... Rb7 $16 43. Qa6 (43. Qxa5 Qxa5 44. Nxa5 Rxb2+ 45. Kh3 Rc2 $14) 43... Bb6) 43. Nxa5 $18 {[%emt 0:00:32][%cal Bb3a5,Ba5c6,Bc6d4,Bd4f3,Bf3g5][%mdl 32] Hoping for Rd6.} Be3 {[%emt 0:00:39]} 44. Nc6 {[%emt 0:00:42]} Qe8 {[%emt 0:00:01]} (44... Qc5) 45. Nd4 {[%emt 0:00:14]} Qe7 {[%emt 0:00:03]} 46. Nf3 {[%emt 0:00:30]} Nd7 {[%emt 0:00:07]} (46... Rc8 {was necessary.} 47. Ng5 Rd8 48. Rxd8 Qxd8) 47. Ng5 {[%emt 0:00:26] Threatens to win with Qd3.} g6 {[%emt 0:00:11]} 48. Qe2 {[%emt 0:00:28] White is clearly winning.} Bb6 {[%emt 0:00:07]} 49. Nb5 {[%emt 0:00:49] Repels Ra7} Rc5 {[%emt 0:00:37]} 50. Nd6 {[%emt 0:00:11] Weighted Error Value: White=0.17 (very precise) /Black=0.29 (precise) .  Mistake:       	White=2     	Black=6      Inaccurate:     	White=3     	Black=2      OK:         	White=16    	Black=13     Best:        	White=1     	Black=4      Strong:       	White=4     	Black=1} 1-0

[Event "7th Sharjah Masters 2024"]
[Site "Sharjah"]
[Date "2024.05.19"]
[Round "6.16"]
[White "Radjabov, Teimour"]
[Black "Nesterov, Arseniy"]
[Result "1-0"]
[ECO "C43"]
[WhiteElo "2723"]
[BlackElo "2590"]
[Annotator "TA"]
[PlyCount "73"]
[EventDate "2024.05.13"]
[EventType "swiss"]
[EventCountry "UAE"]
[SourceTitle "playchess.com"]
[Source "ChessBase"]
[SourceQuality "1"]
[TimeControl "5400+30"]

{[%evp 16,73,10,0,0,0,0,0,0,0,7,0,0,0,0,0,0,-12,0,27,52,57,61,55,57,67,64,66,106,102,130,137,132,129,128,83,80,61,114,118,139,136,145,128,259,252,279,278,274,261,519,492,1921,1389,1490,1834,29972,29973,6191,5514]} 1. e4 {[%emt 1:31:00]} e5 {[%emt 1:31:00]} 2. Nf3 {[%emt 0:00:30]} Nf6 {[%emt 0:00:30]} 3. d4 {[%emt 0:00:30]} Nxe4 {[%emt 0:00:30]} 4. Bd3 {[%emt 0:00:30]} d5 {[%emt 0:00:30]} 5. Nxe5 {[%emt 0:00:30]} Nd7 {[%emt 0:00:30]} 6. Nc3 {[%emt 0:00:30]} Nxc3 {[%emt 0:00:30]} 7. bxc3 {[%emt 0:00:30]} Bd6 {[%emt 0:00:30]} 8. O-O {[%emt 0:00:30]} O-O {[%emt 0:00:30]} 9. Re1 {[%emt 0:00:30]} c5 {[%emt 0:00:30]} 10. Qf3 {[%emt 0:00:30]} c4 {[%emt 0:00:30]} 11. Bf5 {[%emt 0:00:30]} Nxe5 {[%emt 0:00:30] The position is equal.} 12. dxe5 {[%emt 0:00:30] aiming for Bxc8.} Re8 {[%emt 0:00:30]} 13. Bf4 {[%emt 0:00:30] Bxc8 is the strong threat.} (13. Qxd5 $2 Bxf5 14. h3 Qd7 $19) 13... Bf8 {[%emt 0:00:30]} 14. Bxc8 $40 {[%emt 0:00:30][%mdl 128] White mounts an attack.} Rxc8 {[%emt 0:00:30][%cal Ba8c8,Bc8c5,Bc5a5,Ba5a2][%mdl 32]} 15. Re2 {[%emt 0:00:30]} Rc5 {[%emt 0:00:30]} 16. h3 {[%emt 0:00:30]} h6 {[%emt 0:00:30]} 17. Rd1 {[%emt 0:00:30]} Qd7 {[%emt 0:00:30]} 18. Red2 {[%emt 0:00:30]} Rd8 {[%emt 0:00:30]} 19. Be3 {[%emt 0:00:30]} Ra5 {[%emt 0:00:30][%cal Od7e6] [#]} 20. Bxa7 $1 {[%emt 0:00:30]} Qe6 {[%emt 0:00:30] Prevents Bb6} (20... Rxa7 $2 21. Rxd5 b5 22. Rxd7 $18) (20... Qc6 21. Bd4) 21. Bd4 {[%emt 0:00:30]} Rxa2 {[%emt 0:00:30]} 22. Rb1 {[%emt 0:00:30]} Qc6 {[%emt 0:00:30]} 23. Rb6 {[%emt 0:00:30]} Qd7 {[%emt 0:00:30]} 24. Rd1 $1 {[%emt 0:00:30][%cal Bd2d1,Bd1b1,Bb1b6,Bb6h6,Bh6h4][%mdl 32] Prevents Ra1} Ra6 {[%emt 0:00:30]} 25. Rdb1 {[%emt 0:00:30] White has more active pieces.} Rxb6 {[%emt 0:00:30]} 26. Rxb6 {[%emt 0:00:30]} Ra8 {[%emt 0:00:30]} (26... Re8 $14) 27. Qg4 $1 $16 {[%emt 0:00:30]} Qc7 {[%emt 0:00:30]} 28. Rxh6 {[%emt 0:00:30]} g6 {[%emt 0:00:30]} 29. Rh4 $1 {[%emt 0:00:30]} Be7 {[%emt 0:00:30] [#] Repels g3. This costs Black the game.} (29... Bg7 $16 {was worth a try.}) 30. Rh5 $1 $18 {[%emt 0:00:30]} Bf6 {[%emt 0:00:30]} 31. f4 $1 {[%emt 0:00:30]} (31. exf6 $2 Ra1+) 31... Bg7 {[%emt 0:00:30]} 32. Rg5 {[%emt 0:00:30] Hoping for f5.} Bh6 $2 {[%emt 0:00:30] [#]} (32... Ra1+ {was necessary.} 33. Kh2 Rf1) 33. e6 $1 {[%emt 0:00:30]} Bxg5 {[%emt 0:00:30]} (33... Kf8 $142 34. Re5 (34. Rxd5 Ra1+ 35. Kf2 Qxf4+ 36. Qxf4 Bxf4 $18) 34... Bg7 35. e7+ (35. Rxd5 fxe6 36. Rg5 e5 $18) 35... Ke8) 34. Qxg5 {[%emt 0:00:30] Threatening mate with Qf6.} Kf8 {[%emt 0:00:30]} 35. Qf6 {[%emt 0:00:30] White wants to mate with Qg7+.} (35. Qxd5 $2 {loses.} Ra1+ (35... Qxf4 $2 {perishes.} 36. e7+ Ke8 37. Qb5+ Kxe7 38. Qxb7+ Kd6 39. Qxa8 $18) 36. Kf2 Qxf4+ 37. Qf3 Qxf3+ 38. Kxf3 fxe6 $19) 35... Ra1+ {[%emt 0:00:30]} 36. Kh2 {[%emt 0:00:30]} Ke8 {[#]} 37. Bc5 $1 {[%emt 0:00:30][%mdl 512] Weighted Error Value: White=0.03 (flawless) /Black=0.36.  Mistake:       	---       	Black=4      Inaccurate:     	White=1     	Black=2      OK:         	White=6     	Black=9      Best:        	White=4     	Black=2      Strong:       	White=6     	---        Brilliant:      	White=1     	---} 1-0